Cogmind - Beta 15 @@@ ROGUE MODE // 2025.09.01 @ 20:40:16 Player: swetpototo Result: Destroyed by P-70 Sage with Tesla Rifle Performance ------------- Evolutions (5) 2500 Regions Visited (12) 2400 Robots Destroyed (114) 570 Value Destroyed (3493) 3493 Prototype IDs (27) 540 Alien Tech Used (0) 0 Bonus (1095) 1095 TOTAL SCORE: 10598 Bonus ------- High Alert Combat Kills 95 Entered Garrisons 200 Entered DSFs 500 Aligned with FarCom 300 Cogmind --------- Core Integrity 0/1000 Matter 278/300 Energy 5/100 System Corruption 10% Temperature Warm (103) Movement Core (50) Location -5/Factory Parts ------- > --- POWER (2) -------- (None) > --- PROPULSION (4) --- (None) > --- UTILITY (7) ------ Enhanced Optical Array Advanced Signal Interpreter Jamming Amplifier > --- WEAPON (4) ------- Autogun > --- INVENTORY (5) ---- Combat Gravmag System Combat Gravmag System Improved Light Armor Plating Peak State ------------ > --- POWER ------------ Micro Nuclear Core Light Fission Core > --- PROPULSION ------- Combat Gravmag System Combat Gravmag System Combat Gravmag System Combat Gravmag System > --- UTILITY ---------- Enhanced Optical Array Advanced Signal Interpreter Jamming Amplifier Layered Light Armor Plating Improved Shield Generator Improved Hacking Suite > --- WEAPON ----------- Proton Cannon High-powered Shotgun Hypervelocity Gauss Rifle Heavy Pick > --- INVENTORY -------- Combat Gravmag System Combat Gravmag System ECM Suite Improved Light Armor Plating Proton Missile Launcher [Rating: 81] Favorites ----------- Power Light Fission Core Engine Light Angular Momentum Engine Power Core Light Fission Core Reactor Light Antimatter Reactor Propulsion Aluminum Leg Treads Improved Medium Treads Leg Aluminum Leg Wheel Armored Wheel Hover Unit Combat Gravmag System Utility Large Storage Unit Device Advanced Phase Shifter Storage Large Storage Unit Processor Improved Signal Interpreter Hackware Hacking Suite Protection Light Armor Plating Weapon Assault Rifle Energy Gun Improved Heavy Laser Energy Cannon Proton Cannon Ballistic Gun Assault Rifle Ballistic Cannon Assault Cannon Launcher Proton Missile Launcher Impact Weapon Shock Maul Piercing Weapon Heavy Pick Build | -11 -10 -10 -9 -9 -9 -8 -8 -7 -7 -7 -6 -5 ------- Run | Yrd Mat Min Mat Min Exi Min Mat Fac DSF Gar Fac Fac Slots Evolved 10 | . . . 2 . . . 2 2 . . 2 2 Power 1 | . . . . . . . . 1 . . . . Propulsion 2 | . . . 1 . . . . 1 . . . . Utility 5 | . . . 1 . . . 1 . . . 1 2 Weapon 2 | . . . . . . . 1 . . . 1 . Parts Attached 89 | . 1 2 7 2 . 7 4 1 2 10 44 9 Power 15 | . . 1 1 1 . 1 . . 1 2 7 1 Engine 7 | . . 1 1 1 . . . . 1 . 3 . Core 7 | . . . . . . 1 . . . 1 4 1 Reactor 1 | . . . . . . . . . . 1 . . Propulsion 25 | . . . 3 . . 3 1 1 1 1 10 5 Treads 5 | . . . . . . . . . . . 5 . Leg 9 | . . . 3 . . 3 1 . 1 1 . . Wheel 1 | . . . . . . . . 1 . . . . Hover 10 | . . . . . . . . . . . 5 5 Flight . | . . . . . . . . . . . . . Utility 27 | . 1 1 2 1 . 1 2 . . 3 14 2 Device 10 | . . . . . . . 1 . . 2 6 1 Storage 3 | . 1 . . 1 . . . . . . . 1 Processor 5 | . . . 1 . . . . . . . 4 . Hackware 2 | . . . . . . . . . . . 2 . Protection 7 | . . 1 1 . . 1 1 . . 1 2 . Artifact . | . . . . . . . . . . . . . Weapon 22 | . . . 1 . . 2 1 . . 4 13 1 Energy Gun 1 | . . . . . . . . . . . 1 . Energy Cannon 1 | . . . . . . . . . . . 1 . Ballistic Gun 5 | . . . 1 . . . . . . . 3 1 Ballistic Cannon 10 | . . . . . . 2 1 . . 3 4 . Launcher 2 | . . . . . . . . . . 1 1 . Special Weapon . | . . . . . . . . . . . . . Impact Weapon 2 | . . . . . . . . . . . 2 . Slashing Weapon . | . . . . . . . . . . . . . Piercing Weapon 1 | . . . . . . . . . . . 1 . Special Melee Weapon . | . . . . . . . . . . . . . Unidentified Prototypes 4 | . . . . . . . . . . . 3 1 Parts Lost 53 | . . . 2 . . 6 1 . 4 2 22 16 Power 10 | . . . 1 . . . . . 1 . 5 3 Propulsion 16 | . . . . . . 3 1 . 1 1 6 4 Utility 14 | . . . . . . 2 . . 2 1 5 4 Weapon 13 | . . . 1 . . 1 . . . . 6 5 Highest Loss Streak 17 | . . . 2 . . 6 1 . 2 1 17 8 To Critical Strikes 1 | . . . . . . . . . . . 1 . Average Backups 10 | . 6 9 9 10 12 10 13 14 13 13 9 4 Power 1 | . 1 2 1 1 2 2 2 2 1 . 1 . Propulsion 1 | . 4 2 1 3 3 . . 1 1 2 . 1 Utility 3 | . . 1 2 3 3 2 3 4 4 4 3 1 Weapon 4 | . 1 3 3 3 4 5 7 7 7 5 3 1 Tool/Special . | . . . . . . . . . . . . . Unused Backups 29 | . . 3 1 2 . . 4 . . 1 14 4 Power 6 | . . 2 . . . . . . . . 4 . Propulsion 4 | . . . . . . . . . . . 2 2 Utility 11 | . . . . 2 . . . . . . 7 2 Weapon 8 | . . 1 1 . . . 4 . . 1 1 . Tool/Special . | . . . . . . . . . . . . . Average Slot Usage (%) 83 | . 85 96 98 100 100 88 79 69 75 74 81 76 Engine 3 | . 14 14 11 11 11 7 . . 7 . 2 . Core 4 | . . . . . . 3 9 7 3 6 4 8 Reactor 1 | . . . . . . . . . . 6 2 . Treads 3 | . . . . . . . . . . . 9 . Leg 16 | . 28 28 32 33 33 31 26 23 28 21 4 . Hover 4 | . . . . . . . . . . . 6 19 Device 5 | . . . . . . . 7 7 4 6 7 3 Storage 6 | . 14 14 11 11 11 11 9 7 7 7 3 . Processor 9 | . . . 10 11 11 11 9 7 7 7 8 17 Hackware 2 | . . . . . . . . . . . 4 4 Protection 5 | . . 10 11 11 11 1 8 7 6 2 2 3 Ballistic Gun 6 | . 28 28 22 22 22 8 . . . . 1 7 Ballistic Cannon 7 | . . . . . . 13 9 7 7 12 13 . Peak Build Rating 81 | . 7 12 19 17 20 24 50 52 55 69 78 81 Average Rating 48 | . 6 10 17 15 18 20 48 50 52 61 58 66 On Entrance 28 | 6 6 6 12 15 17 20 24 50 52 49 51 65 Naked Turns . | . . . . . . . . . . . . . Heaviest Build 105 | 14 19 26 30 38 38 36 89 89 96 105 73 41 Greatest Support 120 | 20 20 20 35 35 35 38 40 40 58 48 120 56 Greatest Overweight (x) 7 | . . 1 1 1 1 . 3 7 7 2 3 . Average Overweight (x) . | . . . . . 1 . 1 2 1 1 . . Largest Inventory Capacity 25 | . 10 10 10 15 15 15 15 15 15 15 15 25 Average Capacity 11 | . 8 10 10 10 15 15 15 15 15 15 11 5 Most Carried 15 | . 7 10 10 12 15 15 15 15 15 15 15 5 Average Carried 11 | . 6 9 9 10 13 12 14 15 14 14 10 4 Final Capacity 15 | 8 10 10 10 15 15 15 15 15 15 15 5 5 Final Carried 15 | 6 7 10 10 12 15 15 15 15 14 15 5 3 Class Distribution -------------------- 41% | Mutant 35% | Skirmisher 21% | Tank Dominant Class ---------------- Mutant | -10/Materials Mutant | -10/Mines Mutant | -9/Materials Mutant | -9/Mines Mutant | -9/Exiles Mutant | -8/Mines Skirmisher | -8/Materials Skirmisher | -7/Factory Skirmisher | -7/DSF Skirmisher | -7/Garrison Mutant | -6/Factory Tank | -5/Factory Resources | -11 -10 -10 -9 -9 -9 -8 -8 -7 -7 -7 -6 -5 ----------- Run | Yrd Mat Min Mat Min Exi Min Mat Fac DSF Gar Fac Fac Matter Collected 2086 | 200 . 60 248 32 . 120 66 . 50 132 777 401 Remotely 259 | . . . . . . . 66 . 50 . 143 . Salvage Created 3340 | . . 116 402 . . 133 411 . 256 489 904 629 Parts 223 | . . 9 38 . . 1 30 . 25 33 37 50 Haulers Intercepted 3 | . . . 1 . . . 1 . . . 1 . Recyclers Shooed . | . . . . . . . . . . . . . Parts Field Recycled . | . . . . . . . . . . . . . Retrieved Matter . | . . . . . . . . . . . . . Parts Self-Destructed . | . . . . . . . . . . . . . Prevented . | . . . . . . . . . . . . . Kills | -11 -10 -10 -9 -9 -9 -8 -8 -7 -7 -7 -6 -5 ------- Run | Yrd Mat Min Mat Min Exi Min Mat Fac DSF Gar Fac Fac Combat Hostiles Destroyed 87 | . . 4 14 . . 3 11 . 7 24 15 9 Melee 12 | . . . . . . . . . . . 9 3 Guns 20 | . . 4 14 . . 1 . . . . . 1 Cannons 42 | . . . . . . 2 11 . 7 21 1 . AOE 12 | . . . . . . . . . . 3 4 5 Classes Destroyed 14 | . . 2 4 . . . 3 . 1 . 4 . Worker 5 | . . . . . . . . . . . 2 3 Builder 9 | . . . . . . . 2 . . . 1 6 Hauler 3 | . . . 1 . . . 1 . . . 1 . Recycler 4 | . . . . . . . . . . . 3 1 Operator 2 | . . . . . . . 1 . . . 1 . Watcher 4 | . . . 1 . . . 3 . . . . . Swarmer 42 | . . 3 8 . . . 2 . . 16 6 7 Grunt 22 | . . . 5 . . 3 5 . 3 5 1 . Duelist 1 | . . . 1 . . . . . . . . . Sentry 9 | . . 1 . . . . 3 . . 3 2 . Specialist 3 | . . . . . . . . . 3 . . . Hunter 2 | . . . . . . . . . . . 2 . Programmer 6 | . . . . . . . . . . . 4 2 Heavy 2 | . . . . . . . 1 . 1 . . . Best Kill Streak 12 | . . 2 12 . . 3 4 . 3 8 6 9 Combat Bots Only 10 | . . 2 10 . . 3 3 . 3 8 4 6 Max Kills in Single Turn 6 | . . 2 2 . . 1 1 . 1 1 2 6 Gunslinging 1 | . . 1 . . . . . . . . . . Exploded 3 | . . . . . . . . . . 1 2 3 Melee 1 | . . . . . . . . . . . 1 1 Uniques/NPCs Destroyed . | . . . . . . . . . . . . . Combat | -11 -10 -10 -9 -9 -9 -8 -8 -7 -7 -7 -6 -5 -------- Run | Yrd Mat Min Mat Min Exi Min Mat Fac DSF Gar Fac Fac Hostile Shots Fired 967 | . . 10 66 . . 56 32 . 39 136 404 224 Missed 300 | . . 3 19 . . 6 3 . 18 61 119 71 Hits 667 | . . 7 47 . . 50 29 . 21 75 285 153 Melee 3 | . . . 3 . . . . . . . . . Projectile 664 | . . 7 44 . . 50 29 . 21 75 285 153 AOE 2 | . . . . . . . . . . . . 2 Critical Strikes 19 | . . 1 . . . 4 1 . . 2 6 5 Part Disruptions 2 | . . . . . . . . . . . 2 . Damage Taken 9466 | . . 53 525 . . 828 366 . 310 1101 3688 2595 Core 2034 | . . . 30 . . 115 78 . . 154 639 1018 Absorbed by Shields 152 | . . . . . . . . . . . . 152 Regen/Repaired (Parts) 152 | . . . . . . . . . . . 152 . Core Remaining (%) 75 | 100 . 100 . . . 63 85 . . 78 24 . Volleys Fired 107 | . . 5 34 . . 15 . . . 12 32 9 Largest 4 | . . 2 2 . . 2 . . . 3 4 2 Hottest 157 | . . 40 40 . . 53 . . . 111 157 58 Shots Fired 316 | . . 10 68 . . 30 41 . 20 66 66 15 Gun 123 | . . 10 68 . . 20 . . . . 12 13 Cannon 180 | . . . . . . 10 41 . 20 62 47 . Launcher 13 | . . . . . . . . . . 4 7 2 Special . | . . . . . . . . . . . . . Kinetic 303 | . . 10 68 . . 30 41 . 20 62 59 13 Thermal . | . . . . . . . . . . . . . Explosive 4 | . . . . . . . . . . 4 . . Electromagnetic 9 | . . . . . . . . . . . 7 2 Robot Hit Streak 12 | . . 5 12 . . 8 9 . 5 8 5 5 Robot Miss Streak 8 | . . 3 4 . . 2 3 . 2 4 8 3 Penetration Max 1 | . . . . . . . . . . . 1 . Secondary Targets 5 | . . 2 2 . . . . . . . . 1 Max Gunslinging Chain 1 | . . 1 1 . . . . . . . . 1 Autonomous 102 | . . . . . . . 41 . 20 41 . . Shots Hit Robots 229 | . . 6 46 . . 21 27 . 14 37 55 23 Core Hits 134 | . . 4 24 . . 8 13 . 6 23 27 29 Critical Kills 4 | . . 1 . . . . . . . . 2 1 Critical Parts Destroyed 4 | . . . . . . . . . . . 3 1 Critical Strikes 14 | . . 1 . . . . 2 . . 2 6 3 Destroy 3 | . . 1 . . . . . . . . . 2 Blast 5 | . . . . . . . 2 . . 2 1 . Smash 5 | . . . . . . . . . . . 5 . Impale 1 | . . . . . . . . . . . . 1 Melee Attacks 72 | . . . . . . . . . . . 43 29 Impact 34 | . . . . . . . . . . . 34 . Slashing . | . . . . . . . . . . . . . Piercing 38 | . . . . . . . . . . . 9 29 Sneak Attacks 11 | . . . . . . . . . . . 5 6 Combat Hostiles . | . . . . . . . . . . . . . Follow-up Attacks 1 | . . . . . . . . . . . 1 . Damage Inflicted 11188 | . . 76 612 . . 337 2519 . 1426 2766 2343 1109 Guns 1012 | . . 76 607 . . 172 . . . . 55 102 Cannons 7272 | . . . . . . 150 2519 . 1426 2543 634 . Explosions 741 | . . . . . . . . . . 223 223 295 Melee 2014 | . . . . . . . . . . . 1337 677 Ramming 149 | . . . 5 . . 15 . . . . 94 35 Kinetic 8284 | . . 76 607 . . 322 2519 . 1426 2543 689 102 Thermal 26 | . . . . . . . . . . . 26 . Explosive 223 | . . . . . . . . . . 223 . . Electromagnetic 492 | . . . . . . . . . . . 197 295 Impact 1131 | . . . . . . . . . . . 1131 . Slashing . | . . . . . . . . . . . . . Piercing 883 | . . . . . . . . . . . 206 677 Highest Corruption 11 | . . . . . . . . . . . 11 9 Average Corruption 4 | . . . . . . . . . . . 5 3 Corruption Purged . | . . . . . . . . . . . . . Corruption Blocked . | . . . . . . . . . . . . . Effects 73 | . . . . . . . . . . . 59 14 Message Errors 16 | . . . . . . . . . . . 15 1 Matter Fused 19 | . . . . . . . . . . . 12 7 Heat Flow Errors 10 | . . . . . . . . . . . 8 2 Energy Discharges 6 | . . . . . . . . . . . 6 . Parts Fused 1 | . . . . . . . . . . . 1 . Data Loss (minor) 10 | . . . . . . . . . . . 8 2 Data Loss (major) 5 | . . . . . . . . . . . 5 . Misfires 1 | . . . . . . . . . . . 1 . Alerts 4 | . . . . . . . . . . . 2 2 Weapon Failures 1 | . . . . . . . . . . . 1 . Overload Shots . | . . . . . . . . . . . . . Overflow Damage 1556 | . . . . . . 6 406 . 88 430 558 68 Projectiles 956 | . . . . . . 6 406 . 88 430 26 . Explosions . | . . . . . . . . . . . . . Melee 600 | . . . . . . . . . . . 532 68 Knockbacks 45 | . . . . . . 2 6 . 7 8 22 . Impact 3 | . . . . . . . . . . . 3 . Kinetic 40 | . . . . . . 2 5 . 7 7 19 . Secondary 2 | . . . . . . . 1 . . 1 . . Self-Inflicted Damage 98 | . . . . . . . . . . 36 24 38 Shots 3 | . . . . . . . . . . 1 1 1 Rammed 25 | . . . . . . . . . . . 15 10 Targets Rammed 31 | . . . 1 1 . 1 . . . . 18 10 Kicked 3 | . . . 1 1 . 1 . . . . . . Crushed 3 | . . . . . . . . . . . 3 . Highest Temperature 426 | . . . 7 . . 280 10 . . 426 286 320 Average Temperature 99 | . . . 2 . . 163 10 . . 159 95 59 Received Heat Transfer 1473 | . . . 138 . . 522 108 . 36 264 333 72 Effects 9 | . . . . . . . . . . 5 2 2 Shutdowns 2 | . . . . . . . . . . 2 . . Energy Bleed 2 | . . . . . . . . . . . . 2 Interference 3 | . . . . . . . . . . 1 2 . Damage (minor) 2 | . . . . . . . . . . 2 . . Siege Activations . | . . . . . . . . . . . . . Martial Activations . | . . . . . . . . . . . . . Shielding Activations . | . . . . . . . . . . . . . Robots Disrupted . | . . . . . . . . . . . . . Combat Hostiles . | . . . . . . . . . . . . . Robots Corrupted 2 | . . . . . . . . . . . 2 . Combat Hostiles 1 | . . . . . . . . . . . 1 . Parts Fried 6 | . . . . . . . . . . . 6 . Impact Corruptions 15 | . . . . . . . . . . 1 14 . Robots Melted . | . . . . . . . . . . . . . Combat Hostiles . | . . . . . . . . . . . . . Parts Melted . | . . . . . . . . . . . . . Heat Transferred . | . . . . . . . . . . . . . Parts Sabotaged . | . . . . . . . . . . . . . Parts Stolen . | . . . . . . . . . . . . . Parts Stripped . | . . . . . . . . . . . . . Power Chain Reactions 1 | . . . . . . . . . . . 1 . Alert | -11 -10 -10 -9 -9 -9 -8 -8 -7 -7 -7 -6 -5 ------- Run | Yrd Mat Min Mat Min Exi Min Mat Fac DSF Gar Fac Fac Maximum Alert Level 2 | . . . 1 . . . . . . 2 1 1 Low Security (%) 86 | . 100 100 94 100 . 100 100 100 100 33 89 90 Level 1 7 | . . . 5 . . . . . . 14 10 9 Level 2 6 | . . . . . . . . . . 52 . . Level 3 . | . . . . . . . . . . . . . Level 4 . | . . . . . . . . . . . . . Level 5 . | . . . . . . . . . . . . . High Security . | . . . . . . . . . . . . . Max Security . | . . . . . . . . . . . . . Peak Influence 679 | . 18 58 224 24 . 40 93 38 123 679 371 378 Initial 356 | . . 3 . 24 . . . 38 . 92 356 93 Average 94 | . 11 18 50 1 . 9 23 6 49 383 82 74 Influence Increases 2950 | . 18 100 324 . . 70 369 . 163 607 594 705 Destroy 0b10 Robot/C 1740 | . . 80 280 . . 60 220 . 140 480 300 180 Destroy 0b10 Robot/NC 135 | . . . 10 . . . 35 . . . 40 50 Destroy Leader 274 | . . . 34 . . 10 68 . 20 30 82 30 Successful Hack 88 | . 18 5 . . . . 5 . . . 60 . Disable Machine 90 | . . 15 . . . . . . . . 45 30 Destroy Structure 83 | . . . . . . . 11 . 3 37 22 10 Partial Spotted 30 | . . . . . . . . . . 15 . 15 Lose Combat Pursuer 510 | . . . . . . . 30 . . 45 45 390 Influence Decreases 2572 | . 10 108 260 64 . 70 284 85 40 51 1082 518 Entered New Map 544 | . . 5 . 40 . . . 47 . 31 323 98 Time Decay 1168 | . 10 103 90 24 . 50 236 38 . . 347 270 Lost Part 372 | . . . 20 . . 20 10 . 40 20 112 150 Purge Threat 488 | . . . 150 . . . 38 . . . 300 . Squads Dispatched 17 | . . 1 . . . . 1 . 1 . 10 4 Investigation 4 | . . 1 . . . . . . . . 1 2 Extermination 6 | . . . . . . . . . . . 4 2 Reinforcement 4 | . . . . . . . 1 . 1 . 2 . Assault . | . . . . . . . . . . . . . Garrison 3 | . . . . . . . . . . . 3 . Intercept . | . . . . . . . . . . . . . Searches Triggered . | . . . . . . . . . . . . . Construction Impeded . | . . . . . . . . . . . . . Haulers Reinforced . | . . . . . . . . . . . . . Active Scanning Responses . | . . . . . . . . . . . . . Cargo Convoy Interrupts . | . . . . . . . . . . . . . Stealth | -11 -10 -10 -9 -9 -9 -8 -8 -7 -7 -7 -6 -5 --------- Run | Yrd Mat Min Mat Min Exi Min Mat Fac DSF Gar Fac Fac Distress Signals 9 | . . . 4 . . . 2 . . . . 3 Communications Jammed . | . . . . . . . . . . . . . Distress Signals . | . . . . . . . . . . . . . Times Spotted 143 | . . 6 19 . . 3 13 . 6 27 27 42 Peak Tracking Total 15 | . . 2 6 . . 3 3 . 2 9 5 15 Tactical Retreats 16 | . . . . . . . 2 . . 2 2 10 Traps | -11 -10 -10 -9 -9 -9 -8 -8 -7 -7 -7 -6 -5 ------- Run | Yrd Mat Min Mat Min Exi Min Mat Fac DSF Gar Fac Fac Traps Triggered 7 | . . . . . . . . . 2 2 2 1 Indirectly . | . . . . . . . . . . . . . Trap Hack Attempts . | . . . . . . . . . . . . . Triggered . | . . . . . . . . . . . . . Disarmed . | . . . . . . . . . . . . . Reprogrammed . | . . . . . . . . . . . . . Reused . | . . . . . . . . . . . . . Traps Extracted . | . . . . . . . . . . . . . Installed . | . . . . . . . . . . . . . Triggered . | . . . . . . . . . . . . . Machines | -11 -10 -10 -9 -9 -9 -8 -8 -7 -7 -7 -6 -5 ---------- Run | Yrd Mat Min Mat Min Exi Min Mat Fac DSF Gar Fac Fac Machines Disabled 6 | . . 1 . . . . . . . . 3 2 Max in Single Turn 1 | . . 1 . . . . . . . . 1 1 Garrison Access 1 | . . . . . . . . . . . 1 . Machines Repaired . | . . . . . . . . . . . . . Machines Dismantled . | . . . . . . . . . . . . . Machines Sabotaged . | . . . . . . . . . . . . . Overloaded Fab Kills . | . . . . . . . . . . . . . Hacking | -11 -10 -10 -9 -9 -9 -8 -8 -7 -7 -7 -6 -5 --------- Run | Yrd Mat Min Mat Min Exi Min Mat Fac DSF Gar Fac Fac Machines Accessed 26 | . 1 1 3 . 2 . 5 1 . . 10 3 Terminals 20 | . 1 1 3 . . . 4 1 . . 8 2 Fabricators . | . . . . . . . . . . . . . Repair Stations 1 | . . . . . . . . . . . 1 . Recycling Units 1 | . . . . . . . . . . . . 1 Scanalyzers . | . . . . . . . . . . . . . Garrison Access 2 | . . . . . . . 1 . . . 1 . Total Hacks 70 | . 5 3 8 . 10 . 11 1 . . 22 10 Successful 33 | . 3 1 5 . 10 . 2 1 . . 9 2 Failed 37 | . 2 2 3 . . . 9 . . . 13 8 Catastrophic 10 | . 1 . 1 . . . 3 . . . 1 4 Database Lockouts . | . . . . . . . . . . . . . Manual 23 | . 3 . 4 . 1 . 2 . . . 11 2 Terminals 49 | . 5 3 8 . . . 9 1 . . 17 6 Fabricators . | . . . . . . . . . . . . . Repair Stations 4 | . . . . . . . . . . . 4 . Recycling Units 4 | . . . . . . . . . . . . 4 Scanalyzers . | . . . . . . . . . . . . . Garrison Access 3 | . . . . . . . 2 . . . 1 . Terminal Hacks 27 | . 2 1 4 . 10 . 2 1 . . 6 1 Record 10 | . . . 1 . 9 . . . . . . . Open DSF 1 | . . . . . . . . 1 . . . . Branch Access Points 2 | . 1 . 1 . . . . . . . . . Alert Level 4 | . . . 1 . . . . . . . 2 1 Unreport Threat 4 | . . . 1 . . . 1 . . . 2 . Zone Layout 5 | . 1 1 . . . . 1 . . . 2 . Proto ID Catalog 1 | . . . . . 1 . . . . . . . Fabricator Hacks . | . . . . . . . . . . . . . Repair Station Hacks 2 | . . . . . . . . . . . 2 . Scan Component 1 | . . . . . . . . . . . 1 . Repair 1 | . . . . . . . . . . . 1 . Recycling Unit Hacks 1 | . . . . . . . . . . . . 1 Retrieve Components 1 | . . . . . . . . . . . . 1 Scanalyzer . | . . . . . . . . . . . . . Garrison Access Hacks 1 | . . . . . . . . . . . 1 . Seal Access 1 | . . . . . . . . . . . 1 . Unauthorized Hacks 2 | . 1 . 1 . . . . . . . . . Terminals 2 | . 1 . 1 . . . . . . . . . Botnet 1 | . 1 . . . . . . . . . . . Operators 1 | . . . 1 . . . . . . . . . Fabricators . | . . . . . . . . . . . . . Repair Stations . | . . . . . . . . . . . . . Recycling Units . | . . . . . . . . . . . . . Scanalyzers . | . . . . . . . . . . . . . Garrison Access . | . . . . . . . . . . . . . Data Cores Recovered 2 | . . . . . . . 1 . . . 1 . Used . | . . . . . . . . . . . . . Hacking Detections 19 | . 1 1 1 . . . 4 1 . . 8 3 Full Trace Events 5 | . . 1 . . . . 1 . . . 1 2 Feedback Events 1 | . . . . . . . . . . . . 1 Corruption 1 | . . . . . . . . . . . . 1 Feedback Blocked . | . . . . . . . . . . . . . Robot Schematics Acquired . | . . . . . . . . . . . . . Robots Built . | . . . . . . . . . . . . . Authchips . | . . . . . . . . . . . . . Time . | . . . . . . . . . . . . . Total Robot Build Rating . | . . . . . . . . . . . . . Part Schematics Acquired . | . . . . . . . . . . . . . Parts Built . | . . . . . . . . . . . . . Authchips . | . . . . . . . . . . . . . Time . | . . . . . . . . . . . . . Total Part Build Rating . | . . . . . . . . . . . . . Parts Repaired 1 | . . . . . . . . . . . 1 . Time 14 | . . . . . . . . . . . 14 . Parts Recycled . | . . . . . . . . . . . . . Recycled Matter . | . . . . . . . . . . . . . Retrieved Matter . | . . . . . . . . . . . . . Retrieved Components 2 | . . . . . . . . . . . . 2 Parts Scanalyzed . | . . . . . . . . . . . . . Part Schematics Acquired . | . . . . . . . . . . . . . Parts Damaged . | . . . . . . . . . . . . . Bothacking | -11 -10 -10 -9 -9 -9 -8 -8 -7 -7 -7 -6 -5 ------------ Run | Yrd Mat Min Mat Min Exi Min Mat Fac DSF Gar Fac Fac Used RIF Installer . | . . . . . . . . . . . . . Robots Hacked . | . . . . . . . . . . . . . Non-combat . | . . . . . . . . . . . . . Combat . | . . . . . . . . . . . . . Robot Hacks Applied . | . . . . . . . . . . . . . Relay Couplers Released . | . . . . . . . . . . . . . Fabnet Peak Effective % . | . . . . . . . . . . . . . Robots Rewired . | . . . . . . . . . . . . . Allies Hacked . | . . . . . . . . . . . . . Hacks Repelled . | . . . . . . . . . . . . . Allies | -11 -10 -10 -9 -9 -9 -8 -8 -7 -7 -7 -6 -5 -------- Run | Yrd Mat Min Mat Min Exi Min Mat Fac DSF Gar Fac Fac Total Allies . | . . . . . . . . . . . . . Largest Group . | . . . . . . . . . . . . . Highest-Rated Group . | . . . . . . . . . . . . . Highest-Rated Ally . | . . . . . . . . . . . . . Total Orders . | . . . . . . . . . . . . . Ally Attacks . | . . . . . . . . . . . . . Total Damage . | . . . . . . . . . . . . . Kills . | . . . . . . . . . . . . . Allies Corrupted . | . . . . . . . . . . . . . Allies Melted . | . . . . . . . . . . . . . Intel | -11 -10 -10 -9 -9 -9 -8 -8 -7 -7 -7 -6 -5 ------- Run | Yrd Mat Min Mat Min Exi Min Mat Fac DSF Gar Fac Fac Active Infowar (turns) 1581 | . . . . . . . . . . . 492 1089 Optics 1579 | . . . . . . . . . . . 490 1089 ECM 43 | . . . . . . . . . . . 2 41 Robot Analysis Total . | . . . . . . . . . . . . . Derelict Logs Recovered 2 | . . . . 2 . . . . . . . . Drone Launches . | . . . . . . . . . . . . . Drone Recoveries . | . . . . . . . . . . . . . Exploration | -11 -10 -10 -9 -9 -9 -8 -8 -7 -7 -7 -6 -5 ------------- Run | Yrd Mat Min Mat Min Exi Min Mat Fac DSF Gar Fac Fac Turns Passed 9304 | . 33 362 357 446 767 216 1250 286 152 988 3346 1101 Spaces Moved 4885 | 1 26 195 196 289 404 131 496 113 71 376 1769 818 Core 445 | . . . . . . . . . . . 137 308 Treads 553 | . . . . . . . . . . . 553 . Legs 2621 | 1 26 195 196 289 404 131 496 96 66 376 345 . Wheels 22 | . . . . . . . . 17 5 . . . Hover 1244 | . . . . . . . . . . . 734 510 Flight . | . . . . . . . . . . . . . Fastest Speed 50 | 120 120 120 120 120 190 120 120 195 192 193 50 50 Average Speed 149 | 120 120 171 122 128 190 120 248 252 192 232 132 62 Slowest Speed 330 | 120 120 190 190 190 190 120 330 263 195 265 320 80 Overloaded Moves . | . . . . . . . . . . . . . Propulsion Burnouts . | . . . . . . . . . . . . . Robots Hopped . | . . . . . . . . . . . . . Potential Cave-ins . | . . . . . . . . . . . . . Cave-ins Triggered . | . . . . . . . . . . . . . Exploration Rate (%) 36 | 1 12 38 29 62 61 36 40 4 67 46 45 27 Regions Visited 12 Branch Regions 4 Pre-discovered Areas 2 | . . 1 . 1 . . . . . . . . Known Exits Taken 8 | . 1 . 1 1 1 1 1 1 . . 1 . Unknown Exits Taken 2 | 1 . 1 . . . . . . . . . . Scrap Searched 2 | . . . . 2 . . . . . . . . Spaces Dug 15 | . . . . . . . . . . . 10 5 Terrain Destroyed 72 | . . . . . . . 11 . 3 30 23 5 Melee 15 | . . . . . . . . . . . 10 5 Projectile 34 | . . . . . . . 11 . 3 12 8 . AOE 23 | . . . . . . . . . . 18 5 . Terrain Rammed . | . . . . . . . . . . . . . Walls Destroyed . | . . . . . . . . . . . . . Machines Disabled . | . . . . . . . . . . . . . Actions | -11 -10 -10 -9 -9 -9 -8 -8 -7 -7 -7 -6 -5 --------- Run | Yrd Mat Min Mat Min Exi Min Mat Fac DSF Gar Fac Fac Total 6562 | . 27 217 245 366 404 159 521 113 87 472 2620 1331 Wait 1221 | . . . . 69 . . 3 . . 62 647 440 Move 4869 | . 25 194 195 288 403 130 495 112 70 371 1768 818 Hop . | . . . . . . . . . . . . . Pick Up 55 | . . 9 4 3 1 3 10 . 1 3 19 2 Fast Attach 49 | . 1 1 1 . . . 3 1 1 3 32 6 Attach 27 | . . . 3 . . 6 1 . 2 4 8 3 Detach 9 | . 1 . . . . 1 . . . . 7 . Swap 34 | . . 1 3 2 . 2 . . 1 4 15 6 Drop 70 | . . 7 4 3 . 1 9 . 2 3 33 8 Fire 107 | . . 5 34 . . 15 . . . 12 32 9 Melee 70 | . . . . . . . . . . . 41 29 Ram 10 | . . . . . . . . . . . . 10 Kick 3 | . . . 1 1 . 1 . . . . . . Crush 18 | . . . . . . . . . . . 18 . Escape Stasis 20 | . . . . . . . . . 10 10 . . Rewire . | . . . . . . . . . . . . . Trap . | . . . . . . . . . . . . . Miscellaneous . | . . . . . . . . . . . . . Route ------- -11/Scrapyard -10/Materials (discovered 2 exits: *Min x2) -10/Mines -9/Materials (discovered 3 exits: *Mat / *Min x2) -9/Mines (discovered 2 exits: *Mat / *Exi) -9/Exiles -8/Mines -8/Materials -7/Factory -7/DSF -7/Garrison (discovered 2 exits: *Fac x2) -6/Factory -5/Factory (discovered 2 exits: *Upp x2) History --------- Turn | Location | Event 1 | -11/Scrapyard | Discovered new exit (range 0) 1 | -11/Scrapyard | Entered Materials 5 | -10/Materials | Identified exit to Mines 34 | -10/Materials | Entered Mines 99 | -10/Mines | Joined a pair of Derelicts in attacking an 0b10 outpost 224 | -10/Mines | Learned location of Storage (-7) 310 | -10/Mines | Build established: Mutant 360 | -10/Mines | Discovered new exit (range 10) 396 | -10/Mines | Entered Materials 396 | -9/Materials | Evolved 2 slots: Propulsion x1, Utility x1 423 | -9/Materials | Identified exit to Mines 514 | -9/Materials | Discovered new exit (range 16) 531 | -9/Materials | Identified exit to Materials 698 | -9/Materials | Destroyed 10 combat bots 753 | -9/Materials | Entered Mines 803 | -9/Mines | Met a Derelict bent on vengeance 853 | -9/Mines | Learned Materials stockpile data 879 | -9/Mines | Discovered exit to Materials (range 8) 1129 | -9/Mines | Found DCF Scrap (10 items) 1190 | -9/Mines | Deemed a non-threat by the Exiles lab entrance 1192 | -9/Mines | Discovered new exit (range 5) 1197 | -9/Mines | Identified exit to Exiles 1199 | -9/Mines | Entered Exiles 1236 | -9/Exiles | Discovered new exit (range 15) 1258 | -9/Exiles | Identified exit to Mines 1298 | -9/Exiles | Met 8R-AWN 1329 | -9/Exiles | Met EX-HEX 1382 | -9/Exiles | Met EX-BIN 1532 | -9/Exiles | Aligned with FarCom system 1534 | -9/Exiles | Given EX-Vault access code 1578 | -9/Exiles | Opened EX-Vault 1589 | -9/Exiles | Found AWS/Autocannon 1632 | -9/Exiles | Warned to stay clear of 0b10 Research branches 1694 | -9/Exiles | Met EX-DEC 1966 | -9/Exiles | Left Exiles lab with AWS/Autocannon 1966 | -9/Exiles | Entered Mines 2039 | -8/Mines | Lost 6 parts (3n2u1w) 2127 | -8/Mines | Found a Scrap Suit stashed away for nefarious purposes 2130 | -8/Mines | Found Scrap Suit 2154 | -8/Mines | Discovered exit to Materials (range 9) 2182 | -8/Mines | Entered Materials 2182 | -8/Materials | Evolved 2 slots: Utility x1, Weapon x1 2539 | -8/Materials | Build established: Skirmisher 3392 | -8/Materials | Discovered new exit (range 16) 3429 | -8/Materials | Identified exit to Factory 3432 | -8/Materials | Entered Factory 3432 | -7/Factory | Evolved 2 slots: Power x1, Propulsion x1 3718 | -7/Factory | Identified exit to DSF 3718 | -7/Factory | Entered DSF 3777 | -7/DSF | Additional patrols routed to DSF 3841 | -7/DSF | Discovered new exit (range 16) 3868 | -7/DSF | Identified exit to Garrison 3870 | -7/DSF | Entered Garrison 4194 | -7/Garrison | Triggered checkpoint 4237 | -7/Garrison | Destroyed 8 combat bots 4298 | -7/Garrison | Triggered checkpoint 4468 | -7/Garrison | Triggered checkpoint 4488 | -7/Garrison | AWS/Autocannon suddenly broke down 4640 | -7/Garrison | Discovered new exit (range 14) 4663 | -7/Garrison | Identified exit to Factory 4665 | -7/Garrison | Attempted to access garrison exit controls, blocked by remote lockdown 4749 | -7/Garrison | Triggered checkpoint 4829 | -7/Garrison | Build established: Tank 4843 | -7/Garrison | Discovered exit to Factory (range 9) 4858 | -7/Garrison | Entered Factory 4858 | -6/Factory | Evolved 2 slots: Utility x1, Weapon x1 6220 | -6/Factory | Build established: Skirmisher 6820 | -6/Factory | Garrison activated, responded to threat 6887 | -6/Factory | Core integrity fell below 50% 6914 | -6/Factory | Lost 17 parts (3p5n3u6w) 7159 | -6/Factory | Build established: Mutant 7188 | -6/Factory | System corruption reached 10% 7762 | -6/Factory | Discovered new exit (range 21) 7830 | -6/Factory | Repaired Lyr. Light Armor Plating? 8203 | -6/Factory | Identified exit to Factory 8204 | -6/Factory | Entered another Factory area 8204 | -5/Factory | Evolved 2 slots: Utility x2 8301 | -5/Factory | Discovered new exit (range 6) 8304 | -5/Factory | Identified exit to Upper Caves 8373 | -5/Factory | Discovered exit to Upper Caves (range 8) 8616 | -5/Factory | Build established: Tank 8956 | -5/Factory | Lost 4 parts (2u2w) 9106 | -5/Factory | Lost 3 parts (2p1w) 9153 | -5/Factory | Core integrity fell below 50% 9183 | -5/Factory | Build established: Mutant 9196 | -5/Factory | Lost 8 parts (1p4n2u1w) 9246 | -5/Factory | Core integrity fell below 20% 9305 | -5/Factory | Destroyed by P-70 Sage with Tesla Rifle Last Messages --------------- 09272_ ALERT: Suspicious activity at Terminal F018. Dispatching Investigation squad. 09288_ Slammed into U-05 Engineer. 09293_ Slammed into K-01 Serf. 09293_ Destabilizing: System interference. 09293_ Enh. Optical Array temporarily disabled. 09293_ C-30 ARC bursts open, deploying its payload. 09293_ P-70 Sage unfolds itself. 09293_ K-01 Serf collects debris. 09303_ S-27 Virus destroyed. 09303_ Scanalyzer disabled. 09303_ S-27 Virus destroyed. 09303_ Door malfunctions. 09303_ Proton Missile Launcher destroyed. 09303_ P-70 Sage resets S-27 Virus, system corruption cleaned. 09305_ System corrupted: Heat flow error (+103). 09305_ Acquired Autogun. Map ----- +----------------------------------------------------+ | ??????????????????????????????????? ????# + | | ???????????????????????????????? ? """""??????# # | | ???????????????????????????????? ??? ????????# #? | | ???????????????????????????????? ?????????????# #? | | ???????????????????????????????? ?????????????# #? | | ???????????????????????????????? ?????????????# ## | | ???????????????????????????????? ?????????????# | | ???????????????????????????????? ?????????????# ## | | ???????????????????????????????? ##???????????# #? | | ???????????????????????????????? ??????????# #? | | ???????????????????????????????? ???????????# #? | | ???????????????????????????????# ########### ## | | ???????????????????????????????# ! | | ???????????????????????????????# ##### ##+## | | ???????????????????????????????#" "????????# # ? | | ???????????????????????????????#% "????????# # !? | | ???????????????????????????????#] "????????# # !! | | ???????????????????????????????# ?????????# # !! | | ???????????????????????????????# ?????????# # | | ???????????????????????????????# #??????####/##### | | ???????????????????????######### #??????# ]#?? | | ???????????????????????# ! ## ##?????# #?? | | ???????????????????????# # ####### """ #?? | | ???????????????????????#! p spp " + """ #?? | | ???????????????????????# =% # ####### """ #?? | | ???????????????????????#=@ ##g##?????# #?? | | ???????????????????????#%* ## #??????########?? | | ???????????????????????#########Y#???????????????? | | ???????????????????????????????# #???????????????? | | ???????????????????????????????#g#???????????????? | | ???????????????????????????????#g#???????????????? | | ??????????????????????????????? ???????????????? | | ??????????????????????????????? ???????????????? | | ??????????????????????????????? ???????????????? | | ??????????????????????????????? ???????????????? | | ??????????????????????????????? ??????###+#????? | | ??????????????????????????????# ?????? #? | | ??????????????????????????????# ??????""""""" #? | | ??????????????????????????????? ???????"""""" #? | | ??????????????????????????????? ???????"""""" #? | | ??????????????????????????????? ##?????"""""" ?? | | ????????????????#?????????????? #????? ??? | | ????????????????# ???????????????? #????? | ???? | | ????????????????? ?????????????? #????? ????? | | ??????????????????? ????????????? #??#+##+####??? | | ??????????????????###/#??????????? #??# #??? | | ??????????????????# ########## #??# #### | | ????????? ### #??# | | ???????? [ " #### ##??# #### | | ????????? ### #??#%#???# #??? | +----------------------------------------------------+ Best States ------------- Heat Dissipation 65 Energy Generation 34 Energy Capacity 415 Matter Stores 300 Matter Capacity 300 Sight Range 22 Terrain Scan Density 10 ECM Strength 1 Armor Coverage 225 Phase Shifting 15 Evasion (%) 55 Recoil Reduction 4 Offensive Hacking 12 Item Schematics ----------------- None Robot Schematics ------------------ None Fabricated ------------ Nothing Repaired ---------- Lyr. Light Armor Plating | 36% | -6/Factory Alien Tech Used ----------------- None Achievements -------------- None Challenges ------------ None Game ------ Seed TransportStormSword Manual? 0 Play Time 01:23:36 Cumulative 117.1 hours Start 2025.08.31 @ 02:22:50 End 2025.09.01 @ 20:40:16 Sessions 3 Manual Loads 0 Difficulty Rogue Special Mode None Game No. 151 Rogue 64 Adventurer 59 Explorer 28 Win Type - Total 15 Types 13/0/2/0/0/0/0/0/0/0 Lore% 36 Gallery% 59 Achievement% 49 Wizard Run 0 Options --------- Layout 2 ASCII 0 Keyboard 1 Movement Arrows Keybinds 1 Fullscreen 2 Font 32/SmallcapsGlow Map View 50x44 Zoom Use 0% Tactical HUD 1 Map Filters NONE Filters NONE Steam 1 RUN: a59e7876-cdff-4489-9044-96b848fc2e27